[Event "67th Mexican-ch Open 2022"]
[Site "Chihuahua"]
[Date "2022.04.13"]
[Round "1.7"]
[White "Flores Teillery, Alejandro Francisco "]
[Black "Salinas Herrera, Pablo"]
[Result "0-1"]
[ECO "D46"]
[WhiteElo "1879"]
[BlackElo "2517"]
[Annotator "TA"]
[PlyCount "72"]
[EventDate "2022.04.12"]
[EventType "swiss"]
[EventCountry "MEX"]
[SourceTitle "playchess.com"]
[Source "ChessBase"]
[SourceQuality "1"]
[TimeControl "5400+30"]

{[%evp 19,72,1,13,4,-1,1,0,5,14,6,0,0,0,0,0,0,0,-44,-44,-51,-30,-41,-39,-60,-53,-393,-406,-360,-19,-114,-108,-112,-114,-105,-105,-108,-113,-115,-116,-112,-117,-129,-131,-141,-132,-129,-129,-243,-248,-624,-613,-768,-761,-1551,-1491]} 1. d4 {[%emt 0:00:08]} d5 {[%emt 0:02:02]} 2. c4 {[%emt 0:01:05]} e6 {[%emt 0:00:10]} 3. Nf3 {[%emt 0:01:08]} Nf6 {[%emt 0:00:10]} 4. Nc3 {[%emt 0:00:33]} c6 {[%emt 0:00:06]} 5. e3 {[%emt 0:01:05]} Nbd7 {[%emt 0:00:05]} 6. Bd3 {[%emt 0:00:49]} Bd6 {[%emt 0:00:58]} 7. Qc2 {[%emt 0:05:59]} O-O {[%emt 0:00:12]} 8. O-O {[%emt 0:00:18]} dxc4 {[%emt 0:00:06]} 9. Bxc4 {[%emt 0:00:10]} a6 {[%emt 0:00:04]} 10. e4 {[%emt 0:01:33]} e5 $1 {[%emt 0:00:19]} 11. Rd1 {[%emt 0:04:30] D46: Semi-Slav: 5 e3 Nbd7 6 Bd3, Black avoids the Meran.} exd4 {[%emt 0:02:14]} 12. Nxd4 {[%emt 0:00:36]} Qc7 $1 {[%emt 0:00:57]} 13. h3 {[%emt 0:01:48] The position is equal.} b5 {[%emt 0:02:38] is the legacy move (13...Re8).} 14. Bf1 {[%emt 0:05:03]} Re8 {[%emt 0:00:39] [#]} 15. Nf5 $146 {[%emt 0:05:21]} ({Predecessor:} 15. g3 g6 16. a3 Rb8 17. Bg2 c5 18. Nc6 Qxc6 19. e5 Qc7 20. exd6 {½-½ (44) Vekelis,G (2353)-Martello,J (2343) ICCF email 2018}) 15... Be5 {[%emt 0:01:03]} 16. Be3 {[%emt 0:04:51]} b4 {[%emt 0:09:58]} 17. Na4 {[%emt 0:00:23] Black must now prevent g3.} Nxe4 {[%emt 0:00:13][%cal Oc6c5]} 18. Rac1 {[%emt 0:02:57]} ({Don't blunder} 18. Nh6+ $2 gxh6 19. Bd3 Ndf6 $1 $19) (18. Bd3 $5 {[%cal Rd3e4]} Nef6 19. Rac1 $11) 18... Ndf6 $36 {[%emt 0:00:13][%mdl 2048] Black fights for an advantage.} 19. Nd4 {[%emt 0:00:21]} Bh2+ {[%emt 0:01:42]} 20. Kh1 {[%emt 0:00:08]} Bf4 {[%emt 0:00:15]} 21. Bxf4 {[%emt 0:13:47]} ({Don't go for} 21. Qxc6 $2 Qxc6 22. Nxc6 Bxe3 23. fxe3 Nf2+ 24. Kg1 Nxd1 $19) 21... Qxf4 {[%emt 0:00:12]} 22. f3 $2 {[%emt 0:00:14][%mdl 8192]} (22. Kg1 $15) 22... Ng3+ $19 {[%emt 0:05:11]} 23. Kg1 {[%emt 0:00:02]} Be6 $2 {[%emt 0:14:42]} (23... Nxf1 $19 24. Kxf1 Nd5) 24. Nb6 {[%emt 0:06:06]} (24. Nxe6 $11 {keeps the balance.} Rxe6 25. Nc5) 24... Rab8 $17 {[%emt 0:00:10]} 25. Nxe6 {[%emt 0:02:50]} Rxe6 {[%emt 0:00:09] Dancing on a razor blade.} 26. Nd7 {[%emt 0:01:11]} Nxd7 {[%emt 0:06:38]} 27. Rxd7 {[%emt 0:00:06]} Qe3+ {[%emt 0:00:43]} 28. Kh2 {[%emt 0:00:10]} Qe5 {[%emt 0:02:20] &Nero is more active.} 29. Kg1 {[%emt 0:00:41]} Nxf1 {[%emt 0:02:09]} 30. Kxf1 {[%emt 0:01:10]} Rbe8 {[%emt 0:04:49]} 31. Rcd1 {[%emt 0:01:31]} g6 {[%emt 0:03:55] Strongly threatening ...Qg3.} 32. Qd2 {[%emt 0:03:44]} a5 {[%emt 0:41:28]} 33. Rd4 {[%emt 0:04:46] [#]} (33. b3 $17 {was worth a try.}) 33... Kg7 $1 $19 {[%emt 0:00:00] And now ...Qh2 would win.} 34. Qc2 $2 {[%emt 0:03:40]} (34. Re4 Qb5+ 35. Qe2) 34... Qh2 {[%emt 0:00:00] Black is clearly winning.} 35. R4d2 {[%emt 0:01:17]} h5 {[%emt 0:00:00][%cal Oe6e1] ( -> ...Re1+!)} 36. Qc5 {[%emt 0:00:50] [#]} Re1+ $1 {[%emt 0:00:00][%mdl 512] Weighted Error Value: White=0.69/Black=0.13 (very precise)} 0-1

[Event "67th Mexican-ch Open 2022"]
[Site "Chihuahua"]
[Date "2022.04.13"]
[Round "1.8"]
[White "Quesada Perez, Luis Ernesto"]
[Black "Robles Sanchez, Fausto"]
[Result "1-0"]
[ECO "E90"]
[WhiteElo "2517"]
[BlackElo "1878"]
[Annotator "TA"]
[PlyCount "81"]
[EventDate "2022.04.12"]
[EventType "swiss"]
[EventCountry "MEX"]
[SourceTitle "playchess.com"]
[Source "ChessBase"]
[SourceQuality "1"]
[TimeControl "5400+30"]

{[%evp 10,81,56,37,56,45,52,38,75,75,92,74,105,100,137,118,171,164,169,167,191,172,211,175,215,228,387,367,356,298,427,414,436,413,410,343,350,350,350,363,453,422,418,409,500,521,602,605,611,431,429,436,590,560,582,527,925,925,897,845,1425,1445,1443,1429,1433,1430,1413,1412,1284,1266,29989,29990,29991,29992]} 1. d4 {[%emt 0:00:11]} Nf6 {[%emt 0:03:52]} 2. c4 {[%emt 0:00:12]} g6 {[%emt 0:00:12]} 3. Nc3 {[%emt 0:00:08]} Bg7 {[%emt 0:00:05]} 4. e4 {[%emt 0:00:06]} d6 {[%emt 0:00:04]} 5. Nf3 {[%emt 0:01:46]} c6 {[%emt 0:01:17]} 6. h3 {[%emt 0:01:11]} a6 {[%emt 0:01:34] E90: King's Indian: Classical: Early deviations and 6 h3.} 7. Bg5 {[%emt 0:03:14]} b5 {[%emt 0:04:49]} 8. a3 {[%emt 0:00:12] [#]} Nfd7 $146 {[%emt 0:02:34] White is slightly better.} ({Predecessor:} 8... O-O 9. Be2 h6 10. Bh4 Nh5 11. O-O g5 12. Bg3 Nxg3 13. fxg3 Qb6 14. Qd2 g4 15. hxg4 Bxg4 {½-½ (65) Slavin,A (2397)-Ghasi,A (2434) England 2013}) 9. Qd2 {[%emt 0:06:08] &Bianco is more active.} h6 {[%emt 0:03:21]} 10. Be3 {[%emt 0:00:06]} Bb7 {[%emt 0:01:04]} 11. Rb1 {[%emt 0:04:09]} Qc7 {[%emt 0:04:38]} 12. Be2 {[%emt 0:02:17]} Nb6 {[%emt 0:06:33]} (12... bxc4 $16 13. Bxc4 Nb6) 13. b3 $18 {[%emt 0:00:18]} (13. cxb5 $6 axb5 14. d5 Nc4 $11) 13... N8d7 {[%emt 0:01:02]} 14. O-O {[%emt 0:00:13]} Rd8 {[%emt 0:02:15]} 15. Rfc1 {[%emt 0:01:54][%cal Rc4b5]} Qb8 {[%emt 0:03:17]} 16. Bd3 {[%emt 0:05:03]} ({Resist} 16. cxb5 $6 cxb5 17. d5 Nc5) 16... g5 {[%emt 0:05:58]} 17. Ne2 {[%emt 0:03:50][%cal Bc3e2,Be2g3,Bg3f5][%mdl 32]} ({Don't take} 17. cxb5 $6 cxb5 18. d5 e6 19. dxe6 fxe6 $16) 17... g4 $2 {[%emt 0:02:05]} (17... bxc4 18. bxc4 c5) 18. hxg4 {[%emt 0:00:07][%cal Bh3g4,Bg4g5][%mdl 32]} Nf6 {[%emt 0:00:23]} 19. Nh2 {[%emt 0:01:27]} h5 {[%emt 0:02:16]} (19... Nbd7 $142 20. cxb5 axb5) 20. g5 {[%emt 0:00:09]} Ng4 {[%emt 0:00:19]} 21. Nxg4 {[%emt 0:01:16]} hxg4 {[%emt 0:00:22]} 22. Ng3 {[%emt 0:01:00]} Nd7 {[%emt 0:09:42]} 23. Nf5 {[%emt 0:01:30]} Kf8 {[%emt 0:04:38]} 24. Bf4 {[%emt 0:09:40]} e5 {[%emt 0:07:17]} 25. Bg3 {[%emt 0:00:06]} c5 {[%emt 0:01:21]} 26. d5 {[%emt 0:00:49]} Bc8 {[%emt 0:02:08]} 27. b4 {[%emt 0:00:51]} cxb4 {[%emt 0:03:30]} 28. cxb5 {[%emt 0:00:11][%cal Bc4b5,Bb5b6,Bb6b7][%mdl 32]} Nc5 {[%emt 0:00:36]} 29. Rxb4 {[%emt 0:00:49] [#] And now bxa6 would win.} a5 {[%emt 0:02:22]} 30. Rbb1 {[%emt 0:00:43]} Bxf5 {[%emt 0:01:24]} 31. exf5 {[%emt 0:00:14]} f6 {[%emt 0:00:38]} 32. b6 {[%emt 0:02:01]} Rh5 {[%emt 0:01:06] [#]} 33. Rxc5 $1 {[%emt 0:00:27]} dxc5 {[%emt 0:00:16]} 34. Qxa5 {[%emt 0:00:18]} Kf7 {[%emt 0:05:44]} 35. g6+ {[%emt 0:00:42]} Ke7 {[%emt 0:00:31]} 36. b7 {[%emt 0:01:35]} Rdh8 {[%emt 0:08:16]} 37. Qxc5+ {[%emt 0:00:14]} Kd8 {[%emt 0:00:08]} 38. Qb6+ {[%emt 0:00:06]} Ke7 {[%emt 0:00:55]} 39. d6+ {[%emt 0:00:15]} Kf8 {[%emt 0:01:55]} 40. Kf1 {[%emt 0:00:06]} Rh1+ {[%emt 0:01:55]} 41. Ke2 {[%emt 0:00:02] Black did not feel at home in the position after the opening.  Weighted Error Value: White=0.15 (very precise) /Black=0.61} 1-0

[Event "67th Mexican-ch Open 2022"]
[Site "Chihuahua"]
[Date "2022.04.13"]
[Round "1.9"]
[White "Sauceda Castillo, Francisco"]
[Black "Cori Quispe, Kevin Joel"]
[Result "0-1"]
[ECO "A49"]
[WhiteElo "1842"]
[BlackElo "2492"]
[Annotator "TA"]
[PlyCount "52"]
[EventDate "2022.04.12"]
[EventType "swiss"]
[EventCountry "MEX"]
[SourceTitle "playchess.com"]
[Source "ChessBase"]
[SourceQuality "1"]
[TimeControl "5400+30"]

{[%evp 10,52,11,15,34,18,38,20,32,-37,-45,-53,-51,-34,-43,-38,-29,-68,-97,-95,-102,-133,-102,-103,-71,-108,-102,-251,-237,-241,-241,-231,-118,-280,-241,-211,-162,-391,-390,-848,-848,-1394,-1347,-1368,-1322]} 1. d4 {[%emt 0:03:53]} Nf6 {[%emt 0:00:08]} 2. c3 {[%emt 0:00:09]} g6 {[%emt 0:00:11]} 3. Nf3 {[%emt 0:00:20]} Bg7 {[%emt 0:00:07]} 4. g3 {[%emt 0:00:11]} O-O {[%emt 0:00:13]} 5. Bg2 {[%emt 0:00:12]} d6 {[%emt 0:00:09]} 6. O-O {[%emt 0:00:40]} Nc6 {[%emt 0:00:07] A49: 1 d4 Nf6 2 Nf3 g6 3 g3: Anti-King's Indian systems.} 7. Re1 {[%emt 0:00:46]} Bf5 {[%emt 0:01:04]} 8. Bg5 {[%emt 0:02:31]} Ne4 {[%emt 0:02:40] [#] The position is equal.} 9. Nbd2 $146 {[%emt 0:01:34]} (9. Be3 $14) ({Predecessor:} 9. Be3 d5 10. Nbd2 Nf6 11. Bg5 h6 12. Bxf6 Bxf6 13. e4 dxe4 14. Nxe4 Bg7 15. Nc5 {½-½ (40) Czibulka,Z (2215)-Percze,J (2234) Hungary 1999}) 9... Nxg5 $15 {[%emt 0:00:10]} 10. Nxg5 {[%emt 0:01:05]} e5 {[%emt 0:00:11]} 11. Bxc6 {[%emt 0:04:26]} bxc6 {[%emt 0:14:32]} 12. Ngf3 {[%emt 0:02:35]} exd4 {[%emt 0:00:51]} 13. Nxd4 {[%emt 0:07:41]} Bd7 $1 {[%emt 0:00:14]} 14. Rb1 {[%emt 0:02:08]} a5 {[%emt 0:03:16][%cal Ba7a5,Ba5a4][%mdl 32]} 15. Qc2 {[%emt 0:02:57]} Re8 {[%emt 0:02:40]} 16. e4 {[%emt 0:03:07]} Qg5 {[%emt 0:06:30]} 17. Re2 {[%emt 0:05:48]} Qh5 {[%emt 0:06:08]} 18. f3 {[%emt 0:04:44] [#]} (18. Qd3 $17 {was called for.}) 18... c5 $1 $19 {[%emt 0:05:34]} 19. N4b3 {[%emt 0:02:06]} a4 {[%emt 0:00:07]} 20. Nc1 {[%emt 0:01:22] [#]} f5 {[%emt 0:01:01]} ({Black should play} 20... c4 $1 $19 {...d5 is the strong threat.} 21. Re1 Bh6) 21. Rf2 $2 {[%emt 0:02:17]} (21. Nd3 $17) 21... Bh6 {[%emt 0:01:47] And now ...Be3 would win.} 22. Qd3 {[%emt 0:10:44]} Bc6 {[%emt 0:03:10]} 23. Qc4+ $2 {[%emt 0:06:25]} (23. Ne2 {was the only chance.}) 23... Kh8 {[%emt 0:01:07]} 24. Nf1 {[%emt 0:05:36] Inhibits Be3.} (24. Qd3 fxe4 25. Nxe4) 24... fxe4 {[%emt 0:01:08] White must now prevent ...e3. Black is clearly winning.} 25. fxe4 {[%emt 0:00:49]} Rxe4 {[%emt 0:00:43]} 26. Qf7 {[%emt 0:04:05]} Rf8 {[%emt 0:00:30] Black took control after the opening.  Weighted Error Value: White=0.78/Black=0.16 (very precise)} 0-1

[Event "67th Mexican-ch Open 2022"]
[Site "Chihuahua"]
[Date "2022.04.13"]
[Round "1.10"]
[White "Ibarra Chami, Luis Fernando"]
[Black "Gonzalez Cruz, Ian Josue"]
[Result "1-0"]
[ECO "A29"]
[WhiteElo "2451"]
[BlackElo "1814"]
[Annotator "TA"]
[PlyCount "79"]
[EventDate "2022.04.12"]
[EventType "swiss"]
[EventCountry "MEX"]
[SourceTitle "playchess.com"]
[Source "ChessBase"]
[SourceQuality "1"]
[TimeControl "5400+30"]

{[%evp 9,79,0,9,0,42,43,54,43,47,54,49,54,51,52,47,49,64,61,54,70,93,42,26,22,97,104,116,98,207,112,132,131,212,233,226,230,230,212,250,256,255,207,216,213,300,290,326,327,398,228,585,586,597,617,611,598,542,371,778,723,4998,1710,5397,5010,6527,6897,29984,29985,29984,29985,29985,29970]} 1. c4 {[%emt 0:11:14]} e5 {[%emt 0:00:07][%cal Be7e5,Be5e4][%mdl 32]} 2. Nc3 {[%emt 0:00:13]} Nf6 {[%emt 0:00:10]} 3. Nf3 {[%emt 0:00:09]} Nc6 {[%emt 0:00:24]} 4. g3 {[%emt 0:00:16]} Bb4 {[%emt 0:02:34]} 5. Bg2 {[%emt 0:01:20]} d6 {[%emt 0:02:18]} 6. Nd5 {[%emt 0:11:48] [#] A29: English Opening: Four Knights Variation with 4 g3.} e4 $146 {[%emt 0:13:02]} ({Predecessor:} 6... Bc5 7. O-O O-O 8. e3 Nxd5 9. cxd5 Nb4 10. d4 exd4 11. exd4 Bb6 12. Qb3 c5 13. Bg5 f6 14. dxc5 dxc5 15. d6+ Kh8 16. Bf4 {1-0 (35) Akopian,V (2703)-Stupak,K (2520) St Petersburg 2012}) 7. Ng5 {[%emt 0:15:20]} Nxd5 {[%emt 0:05:16]} 8. cxd5 {[%emt 0:00:20] White is slightly better.} Qxg5 {[%emt 0:00:25]} 9. dxc6 {[%emt 0:02:13]} bxc6 {[%emt 0:11:32]} 10. a3 {[%emt 0:07:44]} Ba5 {[%emt 0:01:38]} 11. Bxe4 {[%emt 0:00:51]} Bd7 {[%emt 0:10:41]} ({Weaker is} 11... d5 12. Qa4 $1 Qf6 13. Bxd5 $16 (13. Qxa5 dxe4 14. Qc3 Qxc3 $11)) 12. Qa4 {[%emt 0:04:56]} O-O {[%emt 0:04:32]} 13. Bxc6 {[%emt 0:04:10]} Bxc6 {[%emt 0:02:04]} 14. Qxc6 {[%emt 0:00:04]} Rae8 {[%emt 0:05:05]} 15. Qf3 {[%emt 0:08:47]} (15. e3 $16) 15... Qe5 $14 16. e3 {[%emt 0:01:16]} Qb5 {[%emt 0:09:28]} (16... Rb8 $1 $11) 17. b4 $16 {[%emt 0:01:33]} Bb6 {[%emt 0:00:08] Strongly threatening ...Bd4.} 18. Bb2 {[%emt 0:00:27] Inhibits Bd4.} d5 {[%emt 0:01:14] [#]} (18... a5 $16 {was called for.}) 19. Qe2 {[%emt 0:00:41]} (19. Qg4 $1 $18 {[%csl Gb2][%cal Rg4g7]} d4 20. Bxd4 Bxd4 21. Qxd4) 19... Qd7 {[%emt 0:00:58]} 20. O-O {[%emt 0:01:05]} Qf5 {[%emt 0:01:54]} (20... a5 $16 21. Rfc1 axb4) 21. a4 $18 {[%emt 0:02:32] aiming for a5.} c6 {[%emt 0:04:49]} 22. a5 {[%emt 0:00:19]} Bd8 {[%emt 0:01:29]} 23. Bd4 {[%emt 0:00:47]} Bf6 {[%emt 0:01:03]} 24. Bxf6 {[%emt 0:00:47]} ({Don't do} 24. Bxa7 Bxa1 25. Rxa1 Ra8) 24... Qxf6 {[%emt 0:00:07]} 25. Rab1 {[%emt 0:04:20]} Re7 {[%emt 0:03:09]} 26. Rfc1 {[%emt 0:01:25]} Rc8 {[%emt 0:00:43]} (26... Re6 {was worth a try.} 27. b5 cxb5) 27. Qa6 {[%emt 0:00:36]} Qf5 {[%emt 0:00:40]} 28. b5 {[%emt 0:01:57]} h5 {[%emt 0:00:35]} 29. Rb4 {[%emt 0:00:58]} (29. bxc6 $142 {Threatens to win with Rb7.} Rec7 30. Rb7) 29... Rec7 {[%emt 0:01:06]} (29... c5 {is more resistant.} 30. Rh4 g6) 30. b6 {[%emt 0:00:42]} axb6 {[%emt 0:01:04]} 31. axb6 {[%emt 0:00:06][%cal Ba5b6,Bb6b7][%mdl 32]} Re7 {[%emt 0:00:18]} 32. b7 {[%emt 0:00:32]} Rb8 {[%emt 0:00:07]} 33. Qxc6 {[%emt 0:00:17] Black must now prevent Qc8+.} Ree8 {[%emt 0:01:24] Against Qc8} (33... Kh7 34. Rcb1 Qe5) 34. Rf4 {[%emt 0:02:31]} Qd3 {[%emt 0:01:02]} 35. Qd7 {[%emt 0:01:12]} Rf8 {[%emt 0:00:26]} 36. Rc8 {[%emt 0:01:48] White threatens Qxf7+ and mate.} Qb1+ {[%emt 0:00:37]} 37. Kg2 {[%emt 0:00:05] White wants to mate with Qxf7+.} Qxb7 {[%emt 0:00:19]} 38. Rxf8+ {[%emt 0:00:08] White mates.} Kxf8 {[%emt 0:00:33]} 39. Rxf7+ {[%emt 0:00:08]} Kg8 {[%emt 0:00:51]} 40. Qxb7 {[%emt 0:14:53] Weighted Error Value: White=0.20 (precise) /Black=0.76} 1-0

[Event "67th Mexican-ch Open 2022"]
[Site "Chihuahua"]
[Date "2022.04.13"]
[Round "1.12"]
[White "Fernandez Hernandez, Arturo A."]
[Black "Martinez Martinez, Ian Alf"]
[Result "1-0"]
[ECO "D11"]
[WhiteElo "2376"]
[BlackElo "1821"]
[Annotator "TA"]
[PlyCount "89"]
[EventDate "2022.04.12"]
[EventType "swiss"]
[EventCountry "MEX"]
[SourceTitle "playchess.com"]
[Source "ChessBase"]
[SourceQuality "1"]
[TimeControl "5400+30"]

{[%evp 10,89,32,-5,-8,-1,-11,-10,-6,10,12,11,47,50,49,50,47,41,79,22,30,20,22,22,102,15,34,27,48,5,83,76,66,63,50,37,80,81,83,82,197,203,185,86,86,93,127,102,122,123,254,158,160,160,215,229,202,217,414,407,383,373,349,336,2900,2771,2641,2552,29968,29971,29972,29971,29971,29971,29973,29971,29971,29972,29980,29976,29974,29974]} 1. d4 {[%emt 0:00:27]} d5 {[%emt 0:01:11]} 2. Nf3 {[%emt 0:00:19]} c6 {[%emt 0:01:02]} 3. e3 {[%emt 0:03:05]} Nf6 {[%emt 0:04:03]} 4. Bd3 {[%emt 0:01:34]} Bg4 {[%emt 0:02:14]} 5. Nbd2 {[%emt 0:00:23][%cal Bb1d2,Bd2f3,Bf3d4][%mdl 32]} Nbd7 {[%emt 0:02:00]} 6. c4 {[%emt 0:06:10]} (6. h3 $5 {[%cal Rh3g4]} Bh5 7. O-O $11) 6... e5 {[%emt 0:10:26] [#] And now ...e4 would win. was the old line (6...e6). D11: Slav Defence: 3 Nf3 sidelines and 3...Nf6 4 e3 Bg4.} 7. cxd5 {[%emt 0:01:51]} Nxd5 {[%emt 0:01:01]} 8. h3 {[%emt 0:10:19]} Bxf3 {[%emt 0:08:43] The position is equal.} 9. Nxf3 {[%emt 0:01:12] [#]} Qa5+ $146 {[%emt 0:10:57]} ({Predecessor:} 9... Bb4+ 10. Bd2 Qe7 11. Bc4 exd4 12. Nxd4 N7b6 13. Be2 Rd8 14. O-O O-O 15. Bxb4 Nxb4 {½-½ (43) Genocchio,D (2353)-Lazic,M (2471) Genova 2004}) 10. Bd2 {[%emt 0:04:22]} Qc7 {[%emt 0:53:53]} 11. O-O $36 {[%emt 0:04:40][%mdl 2048] White has the initiative.} Bd6 {[%emt 0:00:00]} 12. Rc1 {[%emt 0:03:26]} exd4 {[%emt 0:00:00]} 13. Nxd4 {[%emt 0:00:54]} Be5 {[%emt 0:00:00]} 14. Bb1 {[%emt 0:13:04]} (14. Qc2 $16) 14... g6 $11 {[%emt 0:00:00]} 15. e4 {[%emt 0:08:58]} Nf4 {[%emt 0:00:00]} 16. Be3 {[%emt 0:03:30]} Rd8 {[%emt 0:00:00] [#]} (16... Bxd4 $11 17. Bxd4 Ne5) 17. Qc2 {[%emt 0:04:54]} ({White should try} 17. g3 $1 $16 {[%cal Rg3f4]}) 17... O-O {[%emt 0:01:28]} 18. Rcd1 {[%emt 0:02:15]} Rfe8 {[%emt 0:01:39]} 19. a3 {[%emt 0:00:21]} (19. g3 $5 {[%cal Rg3f4]}) 19... Qb8 {[%emt 0:00:48]} (19... Nh5 $11 {remains equal.}) 20. Ba2 {[%emt 0:00:40]} Nf8 {[%emt 0:00:18]} 21. Nf3 {[%emt 0:02:35][%cal Oe3a7]} Bf6 {[%emt 0:00:37]} 22. b4 {[%emt 0:04:25]} N8e6 {[%emt 0:00:33]} 23. h4 {[%emt 0:01:55]} Rxd1 {[%emt 0:00:33]} 24. Rxd1 {[%emt 0:00:06]} Rd8 {[%emt 0:00:14] Prevents Rd7.} (24... Nf8 $16 {is a better defense.}) 25. g3 $18 {[%emt 0:00:15]} Nh5 {[%emt 0:00:46]} 26. Kg2 {[%emt 0:00:41]} (26. Bxe6 $18 fxe6 27. Rxd8+ Bxd8 28. Qd3) 26... Nhg7 $16 {[%emt 0:00:18]} 27. Rxd8+ {[%emt 0:02:31]} Nxd8 {[%emt 0:00:41]} 28. Qd2 {[%emt 0:05:55][%cal Oe4e5] Hoping for e5! &Bianco is more active.} Nde6 {[%emt 0:00:33]} 29. Qd7 {[%emt 0:14:13] Bh6 is the strong threat.} Qe8 {[%emt 0:00:25] Loses the game.} (29... Qc7 $16 {was worth a try.} 30. Qxc7 Nxc7) 30. Qxe8+ {[%emt 0:00:00]} Nxe8 {[%emt 0:00:02]} 31. e5 {[%emt 0:00:00]} ({Don't play} 31. Bxa7 Bb2 $16) 31... Bd8 {[%emt 0:00:40]} (31... Be7 $16 32. Bxa7 N8c7) 32. Bxe6 $18 {[%emt 0:00:00]} ({Much less strong is} 32. Bxa7 N8g7 33. Nd2 Nf5) 32... fxe6 {[%emt 0:00:01]} 33. Bxa7 {[%emt 0:00:00][%mdl 4096] Endgame KBN-KBN} Nc7 $2 {[%emt 0:01:20]} (33... Bc7 34. a4 Ng7) 34. Bb6 {[%emt 0:00:00]} Kf7 {[%emt 0:00:33]} 35. Nd4 {[%emt 0:00:00]} Ke7 {[%emt 0:00:13]} 36. f4 {[%emt 0:00:00]} Nb5 $2 {[%emt 0:00:47]} (36... Kd7 37. Kf3 h6 38. Bxc7 Bxc7) 37. Bxd8+ {[%emt 0:00:00]} Kxd8 {[%emt 0:00:01]} 38. Nxb5 {[%emt 0:00:00]} cxb5 {[%emt 0:00:01] KP-KP} 39. h5 {[%emt 0:05:00] White mates.} Ke8 {[%emt 0:01:28]} 40. Kh3 {[%emt 0:00:00]} Kf7 {[%emt 0:00:13]} 41. Kh4 {[%emt 0:00:00]} h6 {[%emt 0:00:32]} 42. g4 {[%emt 0:01:30]} Kg7 {[%emt 0:01:16]} 43. g5 {[%emt 0:00:00]} b6 {[%emt 0:00:00]} 44. gxh6+ Kxh6 {[%emt 0:00:00]} 45. hxg6 {[%emt 0:00:00] Weighted Error Value: White=0.17 (very precise) /Black=0.40} 1-0

[Event "67th Mexican-ch Open 2022"]
[Site "Chihuahua"]
[Date "2022.04.13"]
[Round "1.13"]
[White "Rivera Garcia, David Moises"]
[Black "Galaviz Medina, Sion Radamantys"]
[Result "0-1"]
[ECO "B83"]
[WhiteElo "1780"]
[BlackElo "2374"]
[Annotator "TA"]
[PlyCount "52"]
[EventDate "2022.04.12"]
[EventType "swiss"]
[EventCountry "MEX"]
[SourceTitle "playchess.com"]
[Source "ChessBase"]
[SourceQuality "1"]
[TimeControl "5400+30"]

{[%evp 11,52,16,26,-3,0,-12,-8,-9,0,-10,-14,-14,-5,-430,-432,-419,-306,-542,-545,-683,-546,-745,-717,-712,-419,-422,-407,-400,-333,-556,-565,-575,-563,-621,-610,-814,-809,-906,-873,-1305,-1313,-1156,-843]} 1. e4 {[%emt 0:06:07]} c5 {[%emt 0:00:04]} 2. Nf3 {[%emt 0:00:06]} d6 {[%emt 0:00:04]} 3. d4 {[%emt 0:00:03]} cxd4 {[%emt 0:00:04]} 4. Nxd4 {[%emt 0:00:03]} Nf6 {[%emt 0:00:06]} 5. Nc3 {[%emt 0:00:07]} e6 {[%emt 0:00:05][%cal Be7e6,Be6e5,Be5e4,Be4e3][%mdl 32]} 6. Be2 {[%emt 0:02:01]} Be7 {[%emt 0:02:00] [#]} 7. Qd2 $146 {[%emt 0:00:16] B83: Sicilian Scheveningen: 6 Be2, lines without ...a6.} ({Predecessor:} 7. Be3 O-O 8. Qd2 e5 9. Nb3 a5 10. a3 a4 11. Nc1 Nc6 12. O-O Nxe4 13. Nxe4 d5 14. Ng3 d4 15. Bh6 gxh6 {0-1 (32) Miton,K (2612)-Nisipeanu,L (2687) Germany 2017}) 7... O-O {[%emt 0:02:23]} 8. b3 {[%emt 0:00:03]} d5 {[%emt 0:08:47]} 9. exd5 {[%emt 0:02:47] The position is equal.} Bb4 {[%emt 0:01:13] [#] ...Qa5 is the strong threat.} 10. Bf3 {[%emt 0:01:02]} e5 {[%emt 0:00:50]} 11. Ndb5 {[%emt 0:01:01]} a6 {[%emt 0:02:34][%mdl 1024] And now ...e4 would win. Black has compensation.} 12. Na3 $2 {[%emt 0:00:04][%mdl 8192]} (12. Ba3 $11 {and White has nothing to worry.} Bxa3 13. Nxa3) 12... e4 $19 {[%emt 0:00:13]} 13. Be2 {[%emt 0:00:28]} e3 {[%emt 0:01:13]} 14. Qd3 {[%emt 0:02:55] [#]} (14. fxe3 {only move.} Ne4 15. Nxe4 Bxd2+ 16. Nxd2) 14... Bf5 $1 {[%emt 0:00:25][%mdl 512]} 15. Qc4 {[%emt 0:00:29]} (15. Qxf5 Bxc3+) 15... Qa5 {[%emt 0:00:32]} 16. Nab1 {[%emt 0:02:57]} Rc8 {[%emt 0:00:06][%cal Bf8c8,Bc8c3,Bc3c2][%mdl 32]} 17. Qd4 {[%emt 0:01:42]} Bxc3+ {[%emt 0:00:48]} 18. Nxc3 {[%emt 0:00:03]} Qxc3+ {[%emt 0:00:07]} ({But not} 18... Rxc3 $2 19. O-O Rxc2 20. Qxe3 $19) 19. Qxc3 {[%emt 0:00:08]} Rxc3 {[%emt 0:00:04]} 20. Bb2 $2 {[%emt 0:00:18]} (20. Bxe3 Nbd7 21. Bf3) 20... exf2+ {[%emt 0:01:09] Black is clearly winning.} 21. Kxf2 {[%emt 0:00:21]} Ne4+ {[%emt 0:00:31]} 22. Kf1 {[%emt 0:01:00]} Rxc2 {[%emt 0:00:07]} 23. Be5 {[%emt 0:02:42]} Nd7 {[%emt 0:00:15]} 24. Bf4 {[%emt 0:00:07]} Re8 {[%emt 0:00:34]} 25. a3 {[%emt 0:07:09]} g5 {[%emt 0:01:21]} 26. Rc1 {[%emt 0:05:41]} Nc3 {[%emt 0:01:39] White did not feel at home in the position after the opening.  Weighted Error Value: White=1.28/Black=0.35} 0-1